[Event "Polgar Challenge 2021"]
[Site "Online"]
[Date "2021.04.04"]
[Round "12.6"]
[White "Lei, Tingjie"]
[Black "Gukesh D"]
[Result "1/2-1/2"]
[ECO "B90"]
[WhiteElo "2505"]
[BlackElo "2578"]
[Annotator "ChessBase"]
[PlyCount "107"]
[EventDate "2021.04.08"]
[EventType "tourn"]
[EventCountry "NET"]
[SourceTitle "playchess.com"]
[Source "ChessBase"]
[SourceQuality "1"]
[TimeControl "600+5"]

1. e4 {[%emt 0:00:00]} c5 {[%emt 0:00:00]} 2. Nf3 {[%emt 0:00:00]} d6 {[%emt 0:00:00]} 3. d4 {[%emt 0:00:00]} cxd4 {[%emt 0:00:00]} 4. Nxd4 {[%emt 0:00:01]} Nf6 {[%emt 0:00:00]} 5. Nc3 {[%emt 0:00:01]} a6 {[%emt 0:00:01]} 6. a4 {[%emt 0:00:01]} g6 {[%emt 0:00:18]} 7. Be2 {[%emt 0:00:05]} Bg7 {[%emt 0:00:02]} 8. O-O {[%emt 0:00:03]} O-O {[%emt 0:00:03]} 9. Be3 {[%emt 0:00:05]} Nc6 {[%emt 0:00:29]} 10. Qd2 {[%emt 0:00:18]} Bd7 {[%emt 0:00:09]} 11. f4 {[%emt 0:01:52]} Nxd4 {[%emt 0:00:18]} 12. Bxd4 {[%emt 0:00:04]} Bc6 {[%emt 0:00:01]} 13. Bf3 {[%emt 0:00:03]} Nd7 {[%emt 0:01:15]} 14. Bxg7 {[%emt 0:00:04]} Kxg7 {[%emt 0:00:02]} 15. a5 {[%emt 0:00:21]} b5 {[%emt 0:00:58]} 16. e5 {[%emt 0:02:03]} Rc8 {[%emt 0:01:35]} 17. exd6 {[%emt 0:01:51]} Nf6 {[%emt 0:00:12]} 18. Rad1 {[%emt 0:00:49]} Qxd6 {[%emt 0:02:57]} 19. Qxd6 {[%emt 0:00:46]} exd6 {[%emt 0:00:01]} 20. Rd2 {[%emt 0:00:06]} Rfe8 {[%emt 0:01:08]} 21. Na2 {[%emt 0:01:33]} Bxf3 {[%emt 0:01:07]} 22. Rxf3 {[%emt 0:00:03]} Ne4 {[%emt 0:00:37]} 23. Re2 {[%emt 0:00:21]} Ng5 {[%emt 0:00:03]} 24. Rfe3 {[%emt 0:00:01]} Rxe3 {[%emt 0:00:02]} 25. Rxe3 {[%emt 0:00:01]} Ne6 {[%emt 0:00:02]} 26. Nb4 {[%emt 0:00:05]} Rc4 {[%emt 0:00:23]} 27. c3 {[%emt 0:00:08]} Rxf4 {[%emt 0:00:09]} 28. Rd3 {[%emt 0:00:08]} Re4 {[%emt 0:00:14]} 29. Kf2 {[%emt 0:00:21]} Nc5 {[%emt 0:00:01]} 30. Rd1 {[%emt 0:00:23]} Kf8 {[%emt 0:00:09]} 31. Kf3 {[%emt 0:00:06]} Re6 {[%emt 0:00:01]} 32. Nd5 {[%emt 0:00:09]} Nb3 {[%emt 0:00:08]} 33. Nc7 {[%emt 0:00:25]} Rf6+ {[%emt 0:00:01]} 34. Ke2 {[%emt 0:00:05]} Nxa5 {[%emt 0:00:06]} 35. Nxa6 {[%emt 0:00:02]} Nc4 {[%emt 0:00:02]} 36. b3 {[%emt 0:00:02]} Re6+ {[%emt 0:00:01]} 37. Kf2 {[%emt 0:00:03]} Na5 {[%emt 0:00:17]} 38. b4 {[%emt 0:00:13]} Nc4 {[%emt 0:00:05]} 39. Nc7 {[%emt 0:00:15]} Re5 {[%emt 0:00:04]} 40. Rd4 {[%emt 0:00:02]} Rf5+ {[%emt 0:00:06]} 41. Ke2 {[%emt 0:00:03]} Re5+ {[%emt 0:00:01]} 42. Kf2 {[%emt 0:00:01]} Ne3 {[%emt 0:00:09]} 43. Rxd6 {[%emt 0:00:20]} Ng4+ {[%emt 0:00:01]} 44. Kg3 {[%emt 0:00:01]} h5 {[%emt 0:00:03]} 45. Rd3 {[%emt 0:00:01]} Kg7 {[%emt 0:00:08]} 46. Nd5 {[%emt 0:00:09]} g5 {[%emt 0:00:06]} 47. h3 {[%emt 0:00:02]} Nh6 {[%emt 0:00:01]} 48. Nc7 {[%emt 0:00:07]} Nf5+ {[%emt 0:00:02]} 49. Kf3 {[%emt 0:00:01]} Nh4+ {[%emt 0:00:08]} 50. Kf2 {[%emt 0:00:03]} Rf5+ {[%emt 0:00:07]} 51. Kg1 {[%emt 0:00:04]} Re5 {[%emt 0:00:03]} 52. Kf2 {[%emt 0:00:07]} Rf5+ {[%emt 0:00:10]} 53. Kg1 {[%emt 0:00:02]} Re5 {[%emt 0:00:05]} 54. Kf2 {[%emt 0:00:19]} 1/2-1/2

[Event "Polgar Challenge 2021"]
[Site "Online"]
[Date "2021.04.04"]
[Round "12.7"]
[White "Yip, Carissa"]
[Black "Bjerre, Jonas Buhl"]
[Result "0-1"]
[ECO "B90"]
[WhiteElo "2430"]
[BlackElo "2550"]
[Annotator "ChessBase"]
[PlyCount "56"]
[EventDate "2021.04.08"]
[EventType "tourn"]
[EventCountry "NET"]
[SourceTitle "playchess.com"]
[Source "ChessBase"]
[SourceQuality "1"]
[TimeControl "600+5"]

1. e4 {[%emt 0:00:00]} c5 {[%emt 0:00:00]} 2. Nf3 {[%emt 0:00:00]} d6 {[%emt 0:00:00]} 3. d4 {[%emt 0:00:02]} cxd4 {[%emt 0:00:00]} 4. Nxd4 {[%emt 0:00:00]} Nf6 {[%emt 0:00:00]} 5. Nc3 {[%emt 0:00:01]} a6 {[%emt 0:00:00]} 6. Be3 {[%emt 0:00:01]} e5 {[%emt 0:00:04]} 7. Nf3 {[%emt 0:00:01]} Be7 {[%emt 0:00:02]} 8. Bc4 {[%emt 0:00:03]} O-O {[%emt 0:00:02]} 9. O-O {[%emt 0:00:03]} Nc6 {[%emt 0:00:02]} 10. Re1 {[%emt 0:00:13]} Be6 {[%emt 0:00:34]} 11. Bxe6 {[%emt 0:01:18]} fxe6 {[%emt 0:00:02]} 12. Ng5 {[%emt 0:00:01]} Qd7 {[%emt 0:00:24]} 13. Na4 {[%emt 0:00:16]} Bd8 {[%emt 0:00:23]} 14. Nb6 {[%emt 0:00:02]} Bxb6 {[%emt 0:00:04]} 15. Bxb6 {[%emt 0:00:00]} Ne7 {[%emt 0:00:50]} 16. c3 {[%emt 0:00:15]} h6 {[%emt 0:00:20]} 17. Nf3 {[%emt 0:00:02]} Ng6 {[%emt 0:00:42]} 18. Be3 {[%emt 0:00:13]} Nxe4 {[%emt 0:01:36]} 19. Bxh6 {[%emt 0:01:34]} Nxf2 {[%emt 0:01:14]} 20. Qc2 {[%emt 0:00:05]} e4 {[%emt 0:00:41]} 21. Kxf2 {[%emt 0:00:12]} d5 {[%emt 0:01:02]} 22. Rxe4 {[%emt 0:00:58]} dxe4 {[%emt 0:00:13]} 23. Qxe4 {[%emt 0:00:01]} Rf5 {[%emt 0:00:24]} 24. Be3 {[%emt 0:00:38]} Ne5 {[%emt 0:00:17]} 25. Bd4 {[%emt 0:00:48]} Nxf3 {[%emt 0:00:18]} 26. gxf3 {[%emt 0:00:00]} Raf8 {[%emt 0:00:15]} 27. Rg1 {[%emt 0:00:02]} e5 {[%emt 0:00:21]} 28. Be3 {[%emt 0:01:07]} Rxf3+ {[%emt 0:00:23]} 0-1

[Event "Polgar Challenge 2021"]
[Site "Online"]
[Date "2021.04.04"]
[Round "12.9"]
[White "Salimova, Nurgyul"]
[Black "Yoo, Christopher Woojin"]
[Result "1/2-1/2"]
[ECO "E06"]
[WhiteElo "2397"]
[BlackElo "2455"]
[Annotator "ChessBase"]
[PlyCount "78"]
[EventDate "2021.04.08"]
[EventType "tourn"]
[EventCountry "NET"]
[SourceTitle "playchess.com"]
[Source "ChessBase"]
[SourceQuality "1"]
[TimeControl "600+5"]

1. d4 {[%emt 0:00:00]} Nf6 {[%emt 0:00:00]} 2. Nf3 {[%emt 0:00:00]} e6 {[%emt 0:00:00]} 3. c4 {[%emt 0:00:10]} d5 {[%emt 0:00:02]} 4. g3 {[%emt 0:00:03]} Be7 {[%emt 0:00:04]} 5. Bg2 {[%emt 0:00:02]} O-O {[%emt 0:00:01]} 6. Nc3 {[%emt 0:00:01]} dxc4 {[%emt 0:01:19]} 7. Ne5 {[%emt 0:00:03]} c5 {[%emt 0:00:17]} 8. dxc5 {[%emt 0:00:21]} Qc7 {[%emt 0:01:14]} 9. Nxc4 {[%emt 0:00:22]} Qxc5 {[%emt 0:00:11]} 10. Qb3 {[%emt 0:02:10]} Nc6 {[%emt 0:00:46]} 11. Be3 {[%emt 0:00:18]} Qh5 {[%emt 0:00:06]} 12. h3 {[%emt 0:00:29]} e5 {[%emt 0:01:29]} 13. g4 {[%emt 0:00:14]} Qh4 {[%emt 0:00:04]} 14. Nd2 {[%emt 0:01:47]} Nd4 {[%emt 0:00:46]} 15. Bxd4 {[%emt 0:00:28]} exd4 {[%emt 0:00:06]} 16. Nf3 {[%emt 0:00:04]} Qh6 {[%emt 0:00:18]} 17. g5 {[%emt 0:00:20]} Qg6 {[%emt 0:00:12]} 18. gxf6 {[%emt 0:00:29]} Be6 {[%emt 0:00:18]} 19. Nd5 {[%emt 0:01:49]} Bd6 {[%emt 0:01:20]} 20. Kf1 {[%emt 0:00:29]} Qe4 {[%emt 0:01:11]} 21. Nd2 {[%emt 0:01:04]} Qh4 {[%emt 0:00:16]} 22. Qf3 {[%emt 0:00:11]} g6 {[%emt 0:00:33]} 23. Rd1 {[%emt 0:00:22]} Kh8 {[%emt 0:00:14]} 24. Qe4 {[%emt 0:00:12]} Qh5 {[%emt 0:00:38]} 25. Nf4 {[%emt 0:00:17]} Bxf4 {[%emt 0:00:14]} 26. Qxf4 {[%emt 0:00:00]} d3 {[%emt 0:00:11]} 27. Qf3 {[%emt 0:00:14]} dxe2+ {[%emt 0:00:06]} 28. Qxe2 {[%emt 0:00:01]} Qf5 {[%emt 0:00:03]} 29. Qf3 {[%emt 0:00:16]} Qc2 {[%emt 0:00:07]} 30. Ne4 {[%emt 0:00:07]} Bc4+ {[%emt 0:00:09]} 31. Kg1 {[%emt 0:00:02]} Be2 {[%emt 0:00:02]} 32. Qf4 {[%emt 0:00:04]} Qxd1+ {[%emt 0:00:05]} 33. Kh2 {[%emt 0:00:01]} Qd4 {[%emt 0:00:11]} 34. Qh6 {[%emt 0:00:07]} Rg8 {[%emt 0:00:02]} 35. Ng5 {[%emt 0:00:05]} Qf4+ {[%emt 0:00:08]} 36. Kg1 {[%emt 0:00:00]} Qc1+ {[%emt 0:00:04]} 37. Kh2 {[%emt 0:00:01]} Qf4+ {[%emt 0:00:01]} 38. Kg1 {[%emt 0:00:01]} Qc1+ {[%emt 0:00:01]} 39. Kh2 {[%emt 0:00:01]} Qf4+ {[%emt 0:00:03]} 1/2-1/2

[Event "Polgar Challenge 2021"]
[Site "Online"]
[Date "2021.04.04"]
[Round "13.1"]
[White "Liang, Awonder"]
[Black "Zhu, Jiner"]
[Result "1-0"]
[ECO "D40"]
[WhiteElo "2592"]
[BlackElo "2459"]
[Annotator "ChessBase"]
[PlyCount "93"]
[EventDate "2021.04.08"]
[EventType "tourn"]
[EventCountry "NET"]
[SourceTitle "playchess.com"]
[Source "ChessBase"]
[SourceQuality "1"]
[TimeControl "600+5"]

1. c4 {[%emt 0:00:00]} Nf6 {[%emt 0:00:00]} 2. Nc3 {[%emt 0:00:00]} e6 {[%emt 0:00:04]} 3. Nf3 {[%emt 0:00:02]} d5 {[%emt 0:00:12]} 4. e3 {[%emt 0:00:02]} c5 {[%emt 0:00:18]} 5. d4 {[%emt 0:00:04]} Nc6 {[%emt 0:00:08]} 6. a3 {[%emt 0:00:01]} a6 {[%emt 0:00:30]} 7. dxc5 {[%emt 0:00:08]} Bxc5 {[%emt 0:00:02]} 8. b4 {[%emt 0:00:04]} Ba7 {[%emt 0:00:10]} 9. Bb2 {[%emt 0:00:03]} O-O {[%emt 0:00:05]} 10. Qc2 {[%emt 0:00:03]} Qe7 {[%emt 0:00:30]} 11. Be2 {[%emt 0:01:03]} h6 {[%emt 0:00:23]} 12. O-O {[%emt 0:00:08]} dxc4 {[%emt 0:00:25]} 13. Bxc4 {[%emt 0:00:02]} b5 {[%emt 0:01:02]} 14. Ba2 {[%emt 0:00:15]} Bb7 {[%emt 0:00:07]} 15. Rac1 {[%emt 0:00:08]} Rac8 {[%emt 0:00:24]} 16. Bb1 {[%emt 0:00:32]} Rfd8 {[%emt 0:01:47]} 17. Rfd1 {[%emt 0:00:30]} Rxd1+ {[%emt 0:00:11]} 18. Rxd1 {[%emt 0:00:02]} Bb8 {[%emt 0:00:27]} 19. Ne4 {[%emt 0:01:00]} Nxe4 {[%emt 0:00:03]} 20. Qxe4 {[%emt 0:00:01]} f5 {[%emt 0:00:01]} 21. Qd3 {[%emt 0:00:04]} Rd8 {[%emt 0:00:06]} 22. Qe2 {[%emt 0:00:02]} Rxd1+ {[%emt 0:00:03]} 23. Qxd1 {[%emt 0:00:00]} Qd6 {[%emt 0:00:14]} 24. Qc2 {[%emt 0:00:23]} Qd5 {[%emt 0:00:59]} 25. e4 {[%emt 0:01:24]} fxe4 {[%emt 0:00:07]} 26. Qxe4 {[%emt 0:00:00]} Qd1+ {[%emt 0:00:36]} 27. Qe1 {[%emt 0:00:27]} Qxe1+ {[%emt 0:00:06]} 28. Nxe1 {[%emt 0:00:00]} Ne5 {[%emt 0:00:21]} 29. f3 {[%emt 0:01:03]} Ba7+ {[%emt 0:00:16]} 30. Kf1 {[%emt 0:00:09]} Nc4 {[%emt 0:00:01]} 31. Bc1 {[%emt 0:00:04]} Be3 {[%emt 0:00:33]} 32. Bxe3 {[%emt 0:00:08]} Nxe3+ {[%emt 0:00:00]} 33. Ke2 {[%emt 0:00:01]} Nc4 {[%emt 0:00:01]} 34. Nc2 {[%emt 0:00:02]} Bd5 {[%emt 0:00:41]} 35. Kd3 {[%emt 0:00:48]} Kf7 {[%emt 0:00:05]} 36. Ne3 {[%emt 0:02:00]} Nxa3 {[%emt 0:00:16]} 37. Nxd5 {[%emt 0:00:01]} exd5 {[%emt 0:00:03]} 38. Ba2 {[%emt 0:00:02]} Ke6 {[%emt 0:00:07]} 39. f4 {[%emt 0:00:22]} Kd6 {[%emt 0:00:19]} 40. h4 {[%emt 0:00:29]} Nc4 {[%emt 0:00:16]} 41. Kd4 {[%emt 0:00:09]} Na3 {[%emt 0:00:04]} 42. Bb3 {[%emt 0:00:16]} Nc4 {[%emt 0:00:03]} 43. g4 {[%emt 0:00:03]} Nb6 {[%emt 0:00:14]} 44. f5 {[%emt 0:00:21]} Nc4 {[%emt 0:00:15]} 45. g5 {[%emt 0:00:06]} Nb6 {[%emt 0:00:34]} 46. f6 {[%emt 0:00:04]} gxf6 {[%emt 0:00:28]} 47. gxh6 {[%emt 0:00:02]} 1-0

[Event "Polgar Challenge 2021"]
[Site "Online"]
[Date "2021.04.04"]
[Round "13.3"]
[White "Shuvalova, Polina"]
[Black "Salimova, Nurgyul"]
[Result "0-1"]
[ECO "E05"]
[WhiteElo "2476"]
[BlackElo "2397"]
[Annotator "ChessBase"]
[PlyCount "98"]
[EventDate "2021.04.08"]
[EventType "tourn"]
[EventCountry "NET"]
[SourceTitle "playchess.com"]
[Source "ChessBase"]
[SourceQuality "1"]
[TimeControl "600+5"]

1. d4 {[%emt 0:00:00]} Nf6 {[%emt 0:00:00]} 2. c4 {[%emt 0:00:00]} e6 {[%emt 0:00:00]} 3. Nf3 {[%emt 0:00:02]} d5 {[%emt 0:00:04]} 4. g3 {[%emt 0:00:03]} Be7 {[%emt 0:00:03]} 5. Bg2 {[%emt 0:00:02]} O-O {[%emt 0:00:02]} 6. O-O {[%emt 0:00:00]} dxc4 {[%emt 0:00:01]} 7. Ne5 {[%emt 0:00:04]} Nc6 {[%emt 0:00:22]} 8. Bxc6 {[%emt 0:00:03]} bxc6 {[%emt 0:00:02]} 9. Nxc6 {[%emt 0:00:00]} Qe8 {[%emt 0:00:03]} 10. Nxe7+ {[%emt 0:00:02]} Qxe7 {[%emt 0:00:01]} 11. Nc3 {[%emt 0:00:05]} c5 {[%emt 0:01:38]} 12. dxc5 {[%emt 0:00:04]} Qxc5 {[%emt 0:00:08]} 13. Be3 {[%emt 0:00:02]} Qh5 {[%emt 0:00:36]} 14. f3 {[%emt 0:00:31]} e5 {[%emt 0:00:45]} 15. Qa4 {[%emt 0:04:16]} Bh3 {[%emt 0:01:29]} 16. Rf2 {[%emt 0:00:37]} Be6 {[%emt 0:00:18]} 17. Qa5 {[%emt 0:00:58]} Rab8 {[%emt 0:00:45]} 18. Rd1 {[%emt 0:00:23]} Rxb2 {[%emt 0:01:25]} 19. Rd8 {[%emt 0:00:50]} Rb8 {[%emt 0:00:19]} 20. Rxb8 {[%emt 0:00:05]} Rxb8 {[%emt 0:00:02]} 21. Qxa7 {[%emt 0:00:29]} Rc8 {[%emt 0:00:16]} 22. Qa5 {[%emt 0:00:13]} Nd7 {[%emt 0:01:23]} 23. Rf1 {[%emt 0:00:11]} Qg6 {[%emt 0:00:07]} 24. Rc1 {[%emt 0:01:00]} h5 {[%emt 0:00:17]} 25. Nd5 {[%emt 0:00:19]} Bxd5 {[%emt 0:00:26]} 26. Qxd5 {[%emt 0:00:00]} Qc6 {[%emt 0:00:15]} 27. Qxc6 {[%emt 0:00:22]} Rxc6 {[%emt 0:00:00]} 28. a4 {[%emt 0:00:13]} f6 {[%emt 0:00:08]} 29. a5 {[%emt 0:00:27]} Kf7 {[%emt 0:00:04]} 30. Ra1 {[%emt 0:00:12]} Nb8 {[%emt 0:00:01]} 31. Kf2 {[%emt 0:00:24]} Ke6 {[%emt 0:00:04]} 32. Ke1 {[%emt 0:00:07]} Na6 {[%emt 0:00:16]} 33. Kd2 {[%emt 0:00:01]} Nb4 {[%emt 0:00:13]} 34. Ra3 {[%emt 0:00:17]} Nd5 {[%emt 0:00:14]} 35. Bf2 {[%emt 0:00:06]} Nc7 {[%emt 0:00:41]} 36. Ra4 {[%emt 0:00:09]} f5 {[%emt 0:00:08]} 37. e4 {[%emt 0:00:05]} fxe4 {[%emt 0:00:01]} 38. fxe4 {[%emt 0:00:00]} Kd7 {[%emt 0:00:14]} 39. Be3 {[%emt 0:00:04]} Kc8 {[%emt 0:00:06]} 40. Kc3 {[%emt 0:00:06]} Nb5+ {[%emt 0:00:02]} 41. Kb4 {[%emt 0:00:10]} Nd6 {[%emt 0:00:17]} 42. a6 {[%emt 0:00:02]} Kb8 {[%emt 0:00:03]} 43. a7+ {[%emt 0:00:05]} Ka8 {[%emt 0:00:01]} 44. Ra1 {[%emt 0:00:21]} c3 {[%emt 0:00:07]} 45. Rc1 {[%emt 0:00:07]} Nxe4 {[%emt 0:00:05]} 46. Kb5 {[%emt 0:00:03]} Rc8 {[%emt 0:00:05]} 47. Rc2 {[%emt 0:00:06]} Nd6+ {[%emt 0:00:04]} 48. Kb4 {[%emt 0:00:02]} Nf5 {[%emt 0:00:05]} 49. Bf2 {[%emt 0:00:17]} Ne7 {[%emt 0:00:08]} 0-1

[Event "Polgar Challenge 2021"]
[Site "Online"]
[Date "2021.04.04"]
[Round "13.5"]
[White "Gukesh D"]
[Black "Yip, Carissa"]
[Result "0-1"]
[ECO "C90"]
[WhiteElo "2578"]
[BlackElo "2430"]
[Annotator "ChessBase"]
[PlyCount "124"]
[EventDate "2021.04.08"]
[EventType "tourn"]
[EventCountry "NET"]
[SourceTitle "playchess.com"]
[Source "ChessBase"]
[SourceQuality "1"]
[TimeControl "600+5"]

1. e4 {[%emt 0:00:00]} e5 {[%emt 0:00:00]} 2. Nf3 {[%emt 0:00:00]} Nc6 {[%emt 0:00:00]} 3. Bb5 {[%emt 0:00:02]} a6 {[%emt 0:00:00]} 4. Ba4 {[%emt 0:00:01]} Nf6 {[%emt 0:00:01]} 5. O-O {[%emt 0:00:07]} Be7 {[%emt 0:00:02]} 6. d3 {[%emt 0:01:04]} b5 {[%emt 0:00:32]} 7. Bb3 {[%emt 0:00:02]} d6 {[%emt 0:00:01]} 8. c3 {[%emt 0:00:27]} O-O {[%emt 0:00:06]} 9. Nbd2 {[%emt 0:00:02]} Na5 {[%emt 0:00:07]} 10. Bc2 {[%emt 0:00:01]} c5 {[%emt 0:00:01]} 11. Re1 {[%emt 0:00:02]} Re8 {[%emt 0:00:08]} 12. Nf1 {[%emt 0:00:03]} Bf8 {[%emt 0:00:02]} 13. Ng3 {[%emt 0:00:03]} g6 {[%emt 0:00:01]} 14. h3 {[%emt 0:00:12]} Bg7 {[%emt 0:00:02]} 15. Bg5 {[%emt 0:00:02]} h6 {[%emt 0:00:13]} 16. Be3 {[%emt 0:00:02]} Bb7 {[%emt 0:00:14]} 17. Qd2 {[%emt 0:00:36]} Kh7 {[%emt 0:00:02]} 18. b4 {[%emt 0:00:03]} cxb4 {[%emt 0:00:12]} 19. cxb4 {[%emt 0:00:02]} Nc6 {[%emt 0:00:00]} 20. Bb3 {[%emt 0:00:19]} d5 {[%emt 0:01:26]} 21. Bc5 {[%emt 0:01:19]} Qd7 {[%emt 0:00:23]} 22. exd5 {[%emt 0:03:03]} Nxd5 {[%emt 0:00:03]} 23. Ne4 {[%emt 0:00:01]} Nf4 {[%emt 0:03:01]} 24. d4 {[%emt 0:00:05]} Rad8 {[%emt 0:01:14]} 25. d5 {[%emt 0:02:02]} Ne7 {[%emt 0:01:59]} 26. Bb6 {[%emt 0:01:17]} Rc8 {[%emt 0:01:00]} 27. Nc5 {[%emt 0:00:08]} Rxc5 {[%emt 0:00:07]} 28. Bxc5 {[%emt 0:00:05]} Nexd5 {[%emt 0:00:02]} 29. Rad1 {[%emt 0:00:38]} Qf5 {[%emt 0:00:46]} 30. Bxd5 {[%emt 0:00:10]} Bxd5 {[%emt 0:00:02]} 31. Re3 {[%emt 0:00:01]} Nxh3+ {[%emt 0:00:15]} 32. Kf1 {[%emt 0:00:14]} Bc4+ {[%emt 0:00:04]} 33. Ke1 {[%emt 0:00:13]} Nf4 {[%emt 0:00:01]} 34. Nh4 {[%emt 0:00:11]} Qg4 {[%emt 0:00:06]} 35. Qd7 {[%emt 0:00:06]} Qxh4 {[%emt 0:00:34]} 36. g3 {[%emt 0:00:01]} Ng2+ {[%emt 0:00:03]} 37. Kd2 {[%emt 0:00:00]} Qd8 {[%emt 0:00:03]} 38. Rd3 {[%emt 0:00:15]} Bxd3 {[%emt 0:00:04]} 39. Qxd3 {[%emt 0:00:02]} Qxd3+ {[%emt 0:00:10]} 40. Kxd3 {[%emt 0:00:01]} Rd8+ {[%emt 0:00:05]} 41. Ke2 {[%emt 0:00:00]} Rxd1 {[%emt 0:00:00]} 42. Kxd1 {[%emt 0:00:02]} h5 {[%emt 0:00:03]} 43. Ke2 {[%emt 0:00:00]} h4 {[%emt 0:00:02]} 44. Kf1 {[%emt 0:00:04]} h3 {[%emt 0:00:02]} 45. f3 {[%emt 0:00:09]} f5 {[%emt 0:00:04]} 46. Kg1 {[%emt 0:00:04]} f4 {[%emt 0:00:02]} 47. Kh2 {[%emt 0:00:01]} fxg3+ {[%emt 0:00:02]} 48. Kxh3 {[%emt 0:00:01]} Nf4+ {[%emt 0:00:03]} 49. Kxg3 {[%emt 0:00:00]} g5 {[%emt 0:00:02]} 50. Kg4 {[%emt 0:00:03]} Kg6 {[%emt 0:00:01]} 51. Be7 {[%emt 0:00:01]} Bf6 {[%emt 0:00:01]} 52. Bc5 {[%emt 0:00:01]} Nd3 {[%emt 0:00:05]} 53. Bd6 {[%emt 0:00:03]} Nc1 {[%emt 0:00:03]} 54. a3 {[%emt 0:00:01]} Ne2 {[%emt 0:00:03]} 55. Bc5 {[%emt 0:00:02]} Nd4 {[%emt 0:00:02]} 56. Kg3 {[%emt 0:00:05]} Nc2 {[%emt 0:00:01]} 57. Kg4 {[%emt 0:00:02]} Nxa3 {[%emt 0:00:01]} 58. Bd6 {[%emt 0:00:00]} Nc2 {[%emt 0:00:02]} 59. Bc5 {[%emt 0:00:00]} Bg7 {[%emt 0:00:05]} 60. Bd6 {[%emt 0:00:02]} Ne3+ {[%emt 0:00:01]} 61. Kh3 {[%emt 0:00:01]} Kf5 {[%emt 0:00:03]} 62. Bc5 {[%emt 0:00:03]} Nd5 {[%emt 0:00:02]} 0-1

[Event "Polgar Challenge 2021"]
[Site "Online"]
[Date "2021.04.04"]
[Round "13.6"]
[White "Keymer, Vincent"]
[Black "Lei, Tingjie"]
[Result "1-0"]
[ECO "A13"]
[WhiteElo "2591"]
[BlackElo "2505"]
[Annotator "ChessBase"]
[PlyCount "107"]
[EventDate "2021.04.08"]
[EventType "tourn"]
[EventCountry "NET"]
[SourceTitle "playchess.com"]
[Source "ChessBase"]
[SourceQuality "1"]
[TimeControl "600+5"]

1. Nf3 {[%emt 0:00:00]} d5 {[%emt 0:00:00]} 2. e3 {[%emt 0:00:00]} Nf6 {[%emt 0:00:01]} 3. c4 {[%emt 0:00:00]} e6 {[%emt 0:00:04]} 4. Nc3 {[%emt 0:00:01]} Be7 {[%emt 0:00:09]} 5. b3 {[%emt 0:00:02]} O-O {[%emt 0:00:06]} 6. Bb2 {[%emt 0:00:01]} dxc4 {[%emt 0:00:03]} 7. Bxc4 {[%emt 0:00:05]} a6 {[%emt 0:00:02]} 8. a4 {[%emt 0:00:02]} c5 {[%emt 0:00:31]} 9. O-O {[%emt 0:01:46]} Nc6 {[%emt 0:00:25]} 10. Ne2 {[%emt 0:00:08]} Bd7 {[%emt 0:00:50]} 11. Qb1 {[%emt 0:00:47]} h6 {[%emt 0:02:49]} 12. Rd1 {[%emt 0:01:17]} Na5 {[%emt 0:00:42]} 13. Ng3 {[%emt 0:00:22]} b5 {[%emt 0:00:14]} 14. axb5 {[%emt 0:00:02]} axb5 {[%emt 0:00:07]} 15. Be2 {[%emt 0:00:05]} Bc6 {[%emt 0:01:27]} 16. e4 {[%emt 0:00:22]} Qb6 {[%emt 0:00:29]} 17. Qc2 {[%emt 0:00:24]} Rfc8 {[%emt 0:00:13]} 18. Rab1 {[%emt 0:00:37]} Be8 {[%emt 0:00:11]} 19. Bxf6 {[%emt 0:00:20]} Bxf6 {[%emt 0:00:04]} 20. e5 {[%emt 0:00:01]} Be7 {[%emt 0:00:41]} 21. Qe4 {[%emt 0:00:54]} Nc6 {[%emt 0:00:17]} 22. Bd3 {[%emt 0:00:10]} g6 {[%emt 0:00:09]} 23. Qf4 {[%emt 0:00:41]} Kg7 {[%emt 0:00:26]} 24. h4 {[%emt 0:00:10]} Nb4 {[%emt 0:00:08]} 25. Be4 {[%emt 0:00:18]} Nd5 {[%emt 0:00:30]} 26. Bxd5 {[%emt 0:01:24]} exd5 {[%emt 0:00:02]} 27. d4 {[%emt 0:00:11]} c4 {[%emt 0:00:22]} 28. bxc4 {[%emt 0:00:01]} Rxc4 {[%emt 0:00:03]} 29. Nf1 {[%emt 0:00:09]} Qe6 {[%emt 0:00:25]} 30. Ne3 {[%emt 0:00:02]} h5 {[%emt 0:00:37]} 31. Nxc4 {[%emt 0:00:21]} bxc4 {[%emt 0:00:01]} 32. Ng5 {[%emt 0:00:03]} Qc6 {[%emt 0:00:08]} 33. Ra1 {[%emt 0:00:23]} Rxa1 {[%emt 0:00:14]} 34. Rxa1 {[%emt 0:00:00]} Qb7 {[%emt 0:00:03]} 35. Qc1 {[%emt 0:00:14]} Qb6 {[%emt 0:00:05]} 36. Qf4 {[%emt 0:00:16]} Qb7 {[%emt 0:00:10]} 37. Qf3 {[%emt 0:00:08]} Bf8 {[%emt 0:00:11]} 38. Qf6+ {[%emt 0:00:18]} Kg8 {[%emt 0:00:01]} 39. e6 {[%emt 0:00:00]} Bg7 {[%emt 0:00:01]} 40. exf7+ {[%emt 0:00:16]} Bxf7 {[%emt 0:00:01]} 41. Ra8+ {[%emt 0:00:09]} Qxa8 {[%emt 0:00:04]} 42. Qxf7+ {[%emt 0:00:01]} Kh8 {[%emt 0:00:01]} 43. Qxg6 {[%emt 0:00:01]} Kg8 {[%emt 0:00:14]} 44. Qf7+ {[%emt 0:00:02]} Kh8 {[%emt 0:00:02]} 45. Qxh5+ {[%emt 0:00:01]} Kg8 {[%emt 0:00:01]} 46. Qh7+ {[%emt 0:00:09]} Kf8 {[%emt 0:00:01]} 47. Ne6+ {[%emt 0:00:02]} Kf7 {[%emt 0:00:07]} 48. Nxg7 {[%emt 0:00:01]} Qa1+ {[%emt 0:00:07]} 49. Kh2 {[%emt 0:00:01]} c3 {[%emt 0:00:02]} 50. Nf5+ {[%emt 0:00:05]} Ke6 {[%emt 0:00:06]} 51. Qg6+ {[%emt 0:00:03]} Kd7 {[%emt 0:00:02]} 52. Qd6+ {[%emt 0:00:04]} Kc8 {[%emt 0:00:01]} 53. Qc6+ {[%emt 0:00:10]} Kb8 {[%emt 0:00:05]} 54. Ne3 {[%emt 0:00:06]} 1-0

[Event "Polgar Challenge 2021"]
[Site "Online"]
[Date "2021.04.04"]
[Round "13.7"]
[White "Mendonca, Leon Luke"]
[Black "Badelka, Olga"]
[Result "1-0"]
[ECO "D24"]
[WhiteElo "2549"]
[BlackElo "2433"]
[Annotator "ChessBase"]
[PlyCount "63"]
[EventDate "2021.04.08"]
[EventType "tourn"]
[EventCountry "NET"]
[SourceTitle "playchess.com"]
[Source "ChessBase"]
[SourceQuality "1"]
[TimeControl "600+5"]

1. d4 {[%emt 0:00:00]} Nf6 {[%emt 0:00:00]} 2. c4 {[%emt 0:00:00]} e6 {[%emt 0:00:00]} 3. Nf3 {[%emt 0:00:03]} d5 {[%emt 0:00:00]} 4. Nc3 {[%emt 0:00:03]} dxc4 {[%emt 0:00:02]} 5. e4 {[%emt 0:00:04]} b5 {[%emt 0:00:02]} 6. e5 {[%emt 0:00:04]} Nd5 {[%emt 0:00:01]} 7. Nxb5 {[%emt 0:00:02]} Nb6 {[%emt 0:00:01]} 8. Be2 {[%emt 0:00:14]} Be7 {[%emt 0:00:01]} 9. O-O {[%emt 0:00:04]} Nc6 {[%emt 0:00:03]} 10. Be3 {[%emt 0:00:14]} O-O {[%emt 0:00:18]} 11. b3 {[%emt 0:01:08]} a6 {[%emt 0:01:16]} 12. Nc3 {[%emt 0:00:18]} cxb3 {[%emt 0:00:02]} 13. axb3 {[%emt 0:00:01]} Bb7 {[%emt 0:00:17]} 14. Qb1 {[%emt 0:00:28]} Nb4 {[%emt 0:00:09]} 15. Rc1 {[%emt 0:00:30]} N6d5 {[%emt 0:00:44]} 16. Ne4 {[%emt 0:00:27]} Nxe3 {[%emt 0:01:08]} 17. fxe3 {[%emt 0:00:03]} Nd5 {[%emt 0:00:33]} 18. Kf2 {[%emt 0:01:36]} f5 {[%emt 0:00:19]} 19. exf6 {[%emt 0:00:34]} Nxf6 {[%emt 0:00:17]} 20. Nxf6+ {[%emt 0:01:32]} Bxf6 {[%emt 0:00:02]} 21. Ra5 {[%emt 0:01:06]} Rb8 {[%emt 0:02:13]} 22. Bd3 {[%emt 0:00:34]} g6 {[%emt 0:00:43]} 23. Be4 {[%emt 0:00:18]} Qd6 {[%emt 0:00:46]} 24. Rac5 {[%emt 0:00:48]} Bxd4 {[%emt 0:00:43]} 25. Rc6 {[%emt 0:01:18]} Bxc6 {[%emt 0:00:02]} 26. Rxc6 {[%emt 0:00:01]} Bxe3+ {[%emt 0:01:32]} 27. Kxe3 {[%emt 0:00:00]} Qf4+ {[%emt 0:00:01]} 28. Kf2 {[%emt 0:00:03]} Rbd8 {[%emt 0:00:19]} 29. Kg1 {[%emt 0:00:38]} Qe3+ {[%emt 0:00:06]} 30. Kh1 {[%emt 0:00:01]} Qxe4 {[%emt 0:00:17]} 31. Qxe4 {[%emt 0:00:10]} Rd1+ {[%emt 0:00:10]} 32. Ng1 {[%emt 0:00:01]} 1-0